bitfinex/quotes_ETHUSD_20250815
["timestamp","ask_amount","ask_price","bid_price","bid_amount"]
[1755238581250,0.002,4633.4,4633.3,3.6161889]
[1755238581431,0.002,4633.4,4633.3,4.47278954]
[1755238582954,0.002,4633.4,4633.3,4.55923954]
[1755238583628,0.002,4633.4,4633.3,2.41095064]
[1755238584151,0.002,4633.4,4633.3,4.56923954]
[1755238585830,0.002,4633.4,4633.3,7.89623954]
[1755238589960,0.002,4633.4,4633.3,4.56923954]
[1755238590132,0.002,4633.4,4633.3,4.10003954]
[1755238590732,0.002,4633.4,4633.3,3.65133954]
[1755238591866,0.002,4633.4,4633.3,4.09123954]
[1755238592268,0.002,4633.4,4633.3,4.00478954]
[1755238593964,0.002,4633.4,4633.3,4.18260064]
[1755238594166,0.002,4633.4,4633.1,3.326]
[1755238595632,0.002,4633.4,4633.2,2.15829188]
[1755238595836,0.002,4633.4,4633.1,3.326]
[1755238596039,0.002,4633.4,4633.2,2.15833549]
[1755238596239,0.002,4633.4,4633.3,2.1582889]
[1755238596473,0.002,4633.4,4633.3,2.97734134]
[1755238596843,0.002,4633.4,4633.3,2.1582889]
[1755238598640,0.002,4633.4,4633.3,3.65695368]
[1755238598845,0.002,4633.8,4633.7,2.70810259]
[1755238599078,0.002,4633.8,4633.7,23.87841103]
[1755238599280,0.002,4633.9,4633.8,5.70805602]
[1755238599494,0.002,4633.9,4633.8,7.91252006]
[1755238599684,0.002,4633.9,4633.8,8.84522006]
[1755238600373,0.002,4634.3,4634.2,2.70786975]
[1755238600572,0.002,4634.3,4634.2,9.04882405]
[1755238600746,0.002,4634.3,4634.2,10.07356975]
[1755238600948,0.002,4634.3,4634.2,11.29672094]
[1755238604083,0.002,4634.3,4634.2,11.38314694]
[1755238604986,1e-08,4634.4,4634.3,5.70782318]
[1755238605290,1e-08,4634.4,4634.3,6.64052318]
[1755238606499,1e-08,4634.4,4634.3,6.14772318]
[1755238606658,1e-08,4634.4,4634.3,11.09412019]
[1755238608701,1e-08,4634.4,4634.3,7.77012019]
[1755238608992,1e-08,4634.4,4634.3,11.09412019]
[1755238610386,1e-08,4634.4,4634.3,6.83742019]
[1755238610585,1e-08,4634.4,4634.3,11.09412019]
[1755238610762,1e-08,4634.4,4634.3,10.16142019]
[1755238612480,1e-08,4634.4,4634.3,11.10362019]
[1755238613313,1e-08,4634.4,4634.3,15.35362018]
[1755238614101,1e-08,4634.4,4634.3,15.44004618]
[1755238614267,1e-08,4634.4,4634.3,15.44104618]
[1755238615170,1e-08,4634.7,4634.6,0.55]
[1755238615370,1e-08,4634.7,4634.6,10.91898347]
[1755238615604,1e-08,4634.9,4634.7,3.55]
[1755238615898,0.002,4635.8,4635.0,0.55]
[1755238616099,0.002,4635.8,4635.7,2.70717151]
[1755238616300,0.002,4635.8,4635.7,9.03017151]
[1755238616507,0.002,4635.8,4635.7,10.14891298]
[1755238616676,0.002,4635.8,4635.7,10.60531298]
[1755238617412,0.002,4635.8,4635.7,10.69171098]
[1755238617627,0.002,4635.8,4635.7,10.23531098]
[1755238617766,0.002,4635.8,4635.7,10.14891298]
[1755238619704,0.8833,4635.8,4635.7,10.14891298]
[1755238619910,0.8833,4635.8,4635.7,3.323]
[1755238620212,0.8833,4635.8,4635.7,5.48017151]
[1755238620515,0.8833,4635.8,4635.3,4.24999999]
[1755238620516,0.8833,4635.8,4635.6,3.323]
[1755238620720,0.002,4635.8,4634.9,4.24999999]
[1755238620926,0.002,4635.8,4635.0,3.748]
[1755238621212,0.002,4635.8,4635.7,2.15717151]
[1755238621509,0.478,4635.8,4635.7,3.323]
[1755238621679,0.002,4635.8,4635.7,2.15717151]
[1755238622034,0.002,4635.8,4635.7,5.48017151]
[1755238622307,0.002,4635.8,4635.7,6.24391298]
[1755238623184,0.434,4635.8,4635.7,5.48017151]
[1755238623379,0.91,4635.8,4635.7,5.48017151]
[1755238623580,0.91,4635.8,4635.7,2.15717151]
[1755238623781,0.91,4635.8,4635.7,5.47917151]
[1755238624085,0.002,4635.8,4635.7,5.47917151]
[1755238624614,0.002,4635.8,4635.7,6.24281464]
[1755238625179,0.002,4635.8,4635.7,6.35081464]
[1755238626108,0.91,4635.8,4635.7,6.35081464]
[1755238626416,0.91,4635.8,4635.7,5.58717151]
[1755238626922,0.002,4635.8,4635.7,5.58717151]
[1755238628316,0.002,4635.8,4635.7,6.13717151]
[1755238628614,0.002,4635.8,4635.7,6.59357151]
[1755238628818,0.002,4635.8,4635.7,7.07937151]
[1755238629019,0.002,4635.8,4635.7,9.28383555]
[1755238629421,0.002,4635.8,4635.7,12.28383555]
[1755238630319,1e-08,4635.8,4635.7,12.28383555]
[1755238630684,0.002,4636.2,4636.1,2.70698539]
[1755238630889,0.002,4636.2,4636.1,23.51133515]
[1755238631090,0.002,4636.2,4636.1,24.43760296]
[1755238635231,1e-08,4636.4,4636.3,5.70689234]
[1755238635402,0.002,4637.3,4636.7,0.55]
[1755238635608,0.002,4637.3,4637.1,17.23001338]
[1755238635803,1e-08,4637.3,4637.2,3.55]
[1755238636002,1e-08,4637.3,4637.2,8.86905717]
[1755238636235,1e-08,4637.3,4637.2,8.85313777]
[1755238636622,2.15525619,4639.9,4637.8,5.70619474]
[1755238636623,1e-08,4637.9,4637.8,5.70619474]
[1755238636829,1e-08,4637.9,4637.8,9.13519474]
[1755238637030,1e-08,4637.9,4637.8,10.07739474]
[1755238637238,0.432,4640.4,4638.4,3.0]
[1755238637540,0.432,4640.4,4640.1,2.15510329]
[1755238637727,0.108,4640.5,4640.2,3.321]
[1755238637728,0.908,4640.3,4640.2,3.321]
[1755238638432,0.108,4640.5,4640.4,2.15498663]
[1755238638736,0.54,4640.5,4640.4,3.33688222]
[1755238639105,0.908,4640.5,4640.4,3.33688222]
[1755238639736,0.908,4640.5,4640.4,3.321]
[1755238640117,0.432,4641.1,4640.7,2.15483547]
[1755238640355,0.108,4641.2,4640.8,3.33687717]
[1755238640536,0.432,4641.4,4641.0,2.15469719]
[1755238640720,0.584,4641.6,4640.9,3.321]
[1755238640721,0.108,4641.6,4641.1,3.321]
[1755238640931,0.908,4641.3,4641.1,3.321]
[1755238641240,0.432,4641.2,4641.1,3.321]
[1755238641431,0.908,4641.2,4641.1,3.321]
[1755238641615,0.908,4641.2,4640.7,3.32]
[1755238641819,0.9334,4641.1,4640.6,3.32]
[1755238642121,0.9334,4641.0,4640.7,0.01587792]
[1755238642350,0.108,4641.2,4640.8,3.32]
[1755238642651,0.4361,4641.1,4640.9,0.01587601]
[1755238643044,0.4361,4641.1,4640.7,0.01587601]
[1755238643368,0.4361,4641.1,4640.8,3.32]
[1755238643662,0.108,4641.4,4640.9,2.15471119]
[1755238643947,0.108,4641.6,4641.0,0.01587444]
[1755238644150,0.108,4641.6,4641.1,3.319]
[1755238644321,0.4361,4641.5,4641.1,3.319]
[1755238645539,0.108,4641.6,4641.2,0.01587253]
[1755238645750,0.034614,4641.7,4641.3,0.55]
[1755238646058,0.034614,4641.7,4641.1,5.47365443]
[1755238646059,0.034614,4641.7,4641.6,2.1544295]
[1755238646350,0.034614,4641.7,4641.6,2.17029779]
[1755238647046,0.034614,4641.7,4641.6,2.1544295]
[1755238647252,0.034614,4641.7,4641.6,2.17029779]
[1755238647448,0.034614,4641.7,4641.6,2.64469779]
[1755238647654,0.034614,4641.7,4641.6,4.00145089]
[1755238647819,0.034614,4641.7,4641.6,4.10945089]
[1755238648019,0.034614,4641.7,4641.6,3.63505089]
[1755238649771,0.034614,4641.7,4641.6,2.2624295]
[1755238649924,0.034614,4641.7,4641.6,5.5804295]
[1755238650124,0.034614,4641.7,4641.6,7.0638295]
[1755238650354,0.034614,4641.7,4641.6,10.0638295]
[1755238654158,0.034614,4641.7,4641.6,5.8124295]
[1755238654344,0.034614,4641.7,4641.6,9.37712404]
[1755238654546,0.034614,4641.7,4641.6,10.86052404]
[1755238655530,0.5437,4643.3,4641.7,3.55]
[1755238655730,0.5437,4643.3,4643.1,2.15373134]
[1755238655961,0.6053,4643.3,4643.2,3.319]
[1755238656363,0.4973,4644.0,4643.2,3.33484974]
[1755238656560,0.108,4643.9,4643.2,3.44284974]
[1755238656761,0.108,4643.9,4643.4,2.15356584]
[1755238657079,0.4361,4643.8,4643.6,2.15348783]
[1755238657264,0.108,4643.9,4643.7,3.33484435]
[1755238657450,0.0008255,4644.1,4643.8,3.319]
[1755238657649,0.0008255,4644.1,4643.6,2.15349801]
[1755238657650,0.9334,4643.8,4643.6,2.15349801]
[1755238657828,0.9334,4643.8,4643.5,0.55]
[1755238657829,0.4361,4643.8,4643.7,5.47245521]
[1755238658030,0.4361,4643.8,4643.7,2.15345521]
[1755238658233,0.4361,4643.8,4643.7,3.319]
[1755238658468,0.9334,4643.8,4643.7,3.319]
[1755238658764,0.4369255,4644.1,4643.7,5.47245366]
[1755238658953,0.4369255,4644.1,4643.7,3.319]
[1755238658954,0.0008255,4644.1,4643.7,3.319]
[1755238659262,0.0008255,4644.1,4643.8,2.15340526]
[1755238659608,0.0008255,4644.1,4643.9,3.318]
[1755238659880,0.9334,4644.0,4643.6,3.317]
[1755238660025,0.0008255,4644.1,4643.6,3.426]
[1755238660026,0.9334,4643.9,4643.6,3.426]
[1755238660432,0.0008255,4644.1,4644.0,2.1533161]
[1755238660683,0.0008255,4644.1,4644.0,5.4733161]
[1755238660831,0.0008255,4644.1,4644.0,6.2402321]
[1755238661158,0.0008255,4644.1,4644.0,7.2816321]
[1755238661333,0.0008255,4644.1,4644.0,3.982]
[1755238661667,0.0008255,4644.1,4644.0,6.1353161]
[1755238662474,0.0008255,4644.1,4644.0,2.8113161]
[1755238662672,0.0008255,4644.1,4644.0,6.1343161]
[1755238663464,0.0008255,4644.1,4644.0,6.6097161]
[1755238663641,0.0008255,4644.1,4644.0,7.94502711]
[1755238664164,0.0008255,4644.1,4644.0,3.68762711]
[1755238664339,0.0008255,4644.1,4644.0,6.1363161]
[1755238665229,0.0008255,4644.1,4644.0,7.0697161]
[1755238665550,0.0008255,4644.1,4644.0,6.1353161]
[1755238665763,0.0008255,4644.1,4644.0,0.108]
[1755238665939,0.0008255,4644.1,4644.0,2.1533161]
[1755238666876,0.9342255,4644.1,4643.7,3.325]
[1755238667047,0.108,4643.9,4643.7,3.325]
[1755238667232,0.9334,4643.8,4643.7,3.325]
[1755238667633,0.9334,4643.8,4643.7,5.47845521]
[1755238667930,0.9334,4643.8,4642.0,0.567]
[1755238668133,0.108,4643.5,4643.1,2.15372375]
[1755238668342,0.9334,4643.4,4642.9,2.26178476]
[1755238668544,0.9334,4643.3,4643.0,5.47776982]
[1755238668745,0.108,4643.5,4643.1,0.0158509]
[1755238668943,0.108,4643.5,4642.9,0.108]
[1755238668944,0.4361,4643.2,4642.9,0.108]
[1755238669145,2.15351486,4643.6,4642.9,3.324]
[1755238669356,0.108,4643.1,4642.8,3.328]
[1755238669564,0.9334,4643.0,4642.6,2.15396172]
[1755238669738,2.15387452,4642.8,4640.9,0.9334]
[1755238669949,0.46145565,4642.7,4641.9,2.15425892]
[1755238670133,0.108,4642.3,4641.9,2.15425892]
[1755238670470,0.933,4642.2,4641.4,2.15449006]
[1755238670768,0.4973,4642.2,4641.5,2.26246689]
[1755238670981,0.108,4642.3,4641.6,3.34386666]
[1755238671186,0.108,4642.3,4642.0,2.15420961]
[1755238671468,0.108,4642.3,4642.1,2.15419661]
[1755238671634,0.108,4642.3,4642.1,5.48219661]
[1755238671834,0.108,4642.3,4642.1,3.328]
[1755238672037,0.5437,4642.3,4642.1,3.328]
[1755238672368,0.108,4642.3,4642.1,3.328]
[1755238672573,0.108,4642.3,4642.2,2.15415104]
[1755238672869,0.108,4642.3,4642.1,3.328]
[1755238673035,0.5437,4642.3,4641.7,3.328]
[1755238673235,0.4357,4642.2,4641.7,3.328]
[1755238673474,0.8999,4642.1,4641.8,2.15432728]
[1755238673657,0.8999,4642.1,4641.6,2.15440498]
[1755238673974,0.8999,4642.1,4641.8,2.15429382]
[1755238674171,0.108,4642.3,4641.8,2.15433667]
[1755238674379,0.108,4642.3,4642.0,2.15424386]
[1755238674670,0.108,4642.3,4641.9,2.15428449]
[1755238674835,0.108,4642.3,4642.0,3.327]
[1755238675042,0.5437,4642.3,4642.0,3.327]
[1755238675242,0.4357,4642.2,4641.6,2.15438376]
[1755238675454,0.108,4642.0,4641.9,3.327]
[1755238675760,0.5437,4642.0,4641.8,3.326]
[1755238675961,1.0079,4642.0,4641.7,2.15437364]
[1755238676158,0.5437,4642.0,4641.7,5.48037364]
[1755238676694,0.5437,4642.0,4641.9,2.15429026]
[1755238676854,0.108,4642.0,4641.9,2.15429026]
[1755238677055,0.0008255,4644.1,4644.0,2.7033161]
[1755238677272,0.0008255,4644.1,4644.0,10.00965656]
[1755238677579,0.0008255,4644.1,4644.0,9.9938161]
[1755238678562,0.002,4644.7,4644.6,2.15303793]
[1755238678761,0.002,4644.7,4644.6,5.73538052]
[1755238679275,0.002,4644.7,4644.6,2.35138052]
[1755238679475,0.002,4644.7,4644.6,5.55187143]
[1755238679691,0.002,4644.7,4644.6,5.99023793]
[1755238680144,0.002,4644.7,4644.6,6.80457308]
[1755238680589,0.002,4644.7,4644.6,6.34937308]
[1755238680749,0.002,4644.7,4644.6,6.34837308]
[1755238681151,0.002,4644.7,4644.6,6.80357308]
[1755238681344,0.002,4644.7,4644.6,2.96737308]
[1755238681571,0.002,4644.7,4644.6,5.53303793]
[1755238683295,0.002,4644.7,4644.6,2.15303793]
[1755238683467,0.002,4644.7,4644.6,5.53303793]
[1755238683664,0.002,4644.7,4644.6,3.378]
[1755238684084,0.4488,4644.7,4644.6,3.377]
[1755238684892,0.4488,4644.7,4643.9,0.55]
[1755238685060,0.4488,4644.7,4643.5,0.4468]
[1755238685270,0.913,4644.7,4644.0,2.15327254]
[1755238685483,0.913,4644.7,4644.1,3.376]
[1755238685907,0.913,4644.7,4644.0,5.52931128]
[1755238686079,0.4662,4644.7,4644.1,3.376]
[1755238686282,2.1532505,4644.2,4643.9,3.376]
[1755238686462,2.15336415,4643.9,4643.0,2.15373711]
[1755238686665,0.002,4644.7,4643.0,3.376]
[1755238686666,0.4468,4644.3,4643.0,3.376]
[1755238686879,0.4642,4644.2,4643.0,2.15376575]
[1755238687200,0.4468,4644.1,4643.1,3.377]
[1755238687402,0.108,4643.4,4643.1,3.377]
[1755238687588,0.5548,4643.4,4643.1,3.377]
[1755238687780,0.5548,4643.4,4642.7,0.108]
[1755238687978,0.108,4643.4,4643.1,2.15372519]
[1755238688301,0.108,4643.4,4643.2,2.1536775]
[1755238688515,0.108,4643.4,4643.0,3.376]
[1755238688675,0.108,4643.4,4643.1,2.15373022]
[1755238689009,0.108,4643.4,4643.0,3.376]
[1755238689174,0.108,4643.4,4643.1,2.15373349]
[1755238689610,0.108,4643.4,4643.0,3.376]
[1755238689821,0.5548,4643.4,4642.7,0.108]
[1755238689989,0.108,4643.0,4642.8,3.374]
[1755238690313,0.108,4643.0,4642.7,5.52691569]
[1755238690610,0.108,4643.0,4642.7,3.373]
[1755238690978,0.108,4643.0,4642.2,0.108]
[1755238691188,0.4468,4643.0,4642.3,3.373]
[1755238691422,0.108,4642.6,4641.8,2.26233667]
[1755238691716,0.4468,4642.6,4641.9,3.372]
[1755238692484,0.4468,4642.6,4642.0,2.15424094]
[1755238692920,0.70686273,4642.6,4642.0,2.15424094]
[1755238693080,0.70686273,4642.6,4641.6,0.001]
[1755238693282,3.0,4643.9,4641.6,0.001]
[1755238693283,0.93792514,4642.5,4641.6,0.001]
[1755238693480,2.15430831,4641.9,4641.6,0.001]
[1755238693692,2.15419745,4642.1,4641.6,0.001]
[1755238693921,2.15438309,4641.7,4641.6,0.001]
[1755238694079,2.3698214,4641.7,4641.6,0.001]
[1755238694281,3.2808214,4641.7,4641.6,0.001]
[1755238695614,0.21543831,4641.7,4641.6,0.001]
[1755238695812,2.60106117,4642.0,4641.6,0.001]
[1755238695991,2.61835122,4642.2,4641.6,0.001]
[1755238696192,3.379,4642.7,4641.6,0.001]
[1755238696397,2.15438309,4641.7,4641.6,0.001]
[1755238696693,2.60101593,4642.1,4641.6,0.001]
[1755238696902,0.4468,4642.1,4641.6,0.001]
[1755238697107,2.15401184,4642.5,4641.6,2.15542226]
[1755238697516,3.379,4642.7,4641.7,2.15436052]
[1755238697688,3.8258,4642.9,4641.7,2.15436052]
[1755238698123,2.15387266,4642.8,4641.6,0.001]
[1755238698415,0.4468,4642.9,4641.6,0.001]
[1755238698619,2.15405965,4642.4,4641.6,0.001]
[1755238698787,0.911,4642.7,4641.6,0.001]
[1755238699116,0.4468,4642.4,4641.6,0.001]
[1755238699302,0.0269263,4642.3,4641.6,0.001]
[1755238699509,2.15419745,4642.1,4641.6,0.001]
[1755238699817,2.15438309,4641.7,4641.6,0.001]
[1755238700019,2.18131287,4641.7,4641.6,0.001]
[1755238700222,6.09231287,4641.7,4641.6,0.001]
[1755238700397,6.06538309,4641.7,4641.6,0.001]
[1755238701326,6.61538309,4641.7,4641.6,0.001]
[1755238701693,6.72338309,4641.7,4641.6,0.001]
[1755238702011,6.17338309,4641.7,4641.6,0.001]
[1755238702241,9.56098309,4641.7,4641.6,0.001]
[1755238702554,2.15480089,4640.8,4640.7,0.001]
[1755238702855,3.501,4640.8,4640.7,0.001]
[1755238703034,0.108,4640.8,4640.7,0.001]
[1755238705252,0.108,4640.8,4640.7,3.05904732]
[1755238705438,0.108,4640.8,4640.7,3.36505205]
[1755238705657,0.108,4641.2,4641.1,2.15466161]
[1755238706022,2.15401211,4642.5,4641.2,2.15457279]
[1755238706221,0.108,4641.7,4641.4,2.15448466]
[1755238706459,0.108,4641.7,4641.6,2.1544295]
[1755238706656,3.394,4642.6,4641.5,3.05766085]
[1755238706953,3.394,4642.6,4641.6,2.6074295]
[1755238707256,0.108,4642.2,4641.9,2.15428975]
[1755238707622,0.108,4642.2,4642.0,0.453]
[1755238707823,0.108,4642.2,4642.1,3.05739745]
[1755238708032,0.108,4642.2,4642.1,0.9032]
[1755238708236,0.108,4642.2,4642.1,3.05739745]
[1755238708449,0.108,4642.2,4642.1,3.57856449]
[1755238708663,0.108,4642.6,4642.1,3.57856449]
[1755238708873,0.108,4642.6,4642.2,3.05735104]
[1755238709055,0.108,4642.6,4642.2,0.9032]
[1755238709575,0.108,4642.6,4642.2,3.0573465]
[1755238709791,0.108,4642.6,4641.9,2.15424816]
[1755238710238,0.108,4642.6,4641.7,2.26233881]
[1755238710442,2.15398662,4642.6,4641.8,0.31655388]
[1755238710775,0.108,4642.0,4641.9,2.15429026]
[1755238711063,0.108,4642.0,4641.8,0.31655388]
[1755238711229,0.108,4642.0,4641.6,0.453]
[1755238711433,0.108,4642.0,4641.9,2.15429026]
[1755238711655,0.108,4642.0,4641.7,0.9032]
[1755238712043,0.108,4642.0,4641.4,0.41376847]
[1755238712472,0.108,4642.0,4641.7,2.15435882]
[1755238712671,0.108,4642.0,4641.7,0.56257944]
[1755238713185,0.108,4642.0,4641.9,2.15429026]
[1755238713384,0.108,4642.0,4641.7,1.46577944]
[1755238713551,0.108,4642.0,4641.7,0.56257944]
[1755238713747,0.108,4642.0,4641.6,0.001]
[1755238713979,0.108,4642.0,4641.7,2.15438263]
[1755238714193,0.108,4642.0,4641.6,0.9042]
[1755238714349,2.15423824,4642.1,4641.6,0.001]
[1755238714550,0.108,4641.7,4641.6,0.001]
[1755238716255,0.108,4641.7,4641.6,2.1554295]
[1755238716455,0.108,4641.7,4641.6,3.0586295]
[1755238716984,0.108,4641.7,4641.6,3.57994261]
[1755238717791,0.108,4642.1,4642.0,2.15421871]
[1755238718100,0.108,4642.1,4642.0,2.60441871]
[1755238718295,0.108,4642.1,4641.7,2.15438309]
[1755238718593,0.108,4642.1,4642.0,2.15424386]
[1755238719181,0.4686,4643.1,4642.4,2.15405753]
[1755238719388,2.15358733,4643.5,4642.4,0.01585655]
[1755238719564,0.108,4642.6,4642.5,2.62286642]
[1755238719764,0.108,4642.6,4642.5,0.9032]
[1755238719965,0.108,4642.6,4642.3,2.15409725]
[1755238720266,0.108,4642.6,4642.4,2.15405811]
[1755238720687,0.108,4642.6,4642.5,3.0730701]
[1755238721000,0.108,4643.1,4643.0,2.15377988]
[1755238721198,0.108,4643.1,4642.6,2.15396545]
[1755238721397,3.382,4643.8,4642.7,2.15389306]
[1755238721574,0.108,4643.3,4642.7,0.108]
[1755238721779,0.108,4643.3,4643.0,2.15377288]
[1755238722098,0.108,4643.3,4643.1,2.15372913]
[1755238722297,0.108,4643.3,4643.2,2.15368711]
[1755238722598,0.108,4643.3,4643.1,0.453]
[1755238723001,0.108,4643.3,4642.8,0.94169154]
[1755238723002,0.108,4643.3,4642.9,2.15382265]
[1755238723306,0.108,4643.3,4642.8,0.94169154]
[1755238723475,0.108,4643.3,4643.0,0.453]
[1755238723991,0.108,4643.3,4643.1,0.453]
[1755238724323,0.108,4643.3,4643.1,0.9032]
[1755238724482,0.108,4643.3,4643.0,0.15026915]
[1755238724675,0.108,4643.3,4642.4,5.98504579]
[1755238724887,0.108,4643.3,4642.7,2.15391102]
[1755238725379,0.108,4643.3,4642.8,2.15387215]
[1755238725813,0.108,4643.3,4642.6,2.15393381]
[1755238726309,0.108,4643.3,4642.7,2.15388085]
[1755238726522,0.108,4643.3,4642.5,0.108]
[1755238726686,0.108,4643.3,4642.8,2.15386489]
[1755238727409,0.108,4643.3,4642.6,2.15395793]
[1755238727613,0.108,4643.3,4642.9,2.15381038]
[1755238728342,0.108,4643.3,4643.2,2.15368711]
[1755238728711,0.108,4643.3,4643.0,0.01585164]
[1755238729052,0.108,4643.3,4642.5,0.54692]
[1755238729208,0.108,4643.3,4642.6,2.15396545]
[1755238729609,0.108,4643.3,4642.7,2.15391862]
[1755238729843,0.002,4644.3,4642.8,0.9032]
[1755238730006,0.002,4644.3,4643.2,0.108]
[1755238730209,0.108,4643.9,4643.4,2.15359434]
[1755238730438,2.15323194,4644.2,4643.2,3.396]
[1755238730620,0.002,4643.3,4643.2,3.396]
[1755238730815,0.002,4643.3,4643.2,6.90945685]
[1755238731106,0.002,4643.3,4643.2,6.89360711]
[1755238731813,0.002,4643.3,4643.2,7.55160711]
[1755238732030,0.002,4643.3,4643.2,3.60560711]
[1755238732237,0.002,4643.3,4643.2,5.55168711]
[1755238733365,0.002,4643.3,4642.8,0.5774]
[1755238733515,0.002,4643.3,4642.8,3.398]
[1755238733712,0.108,4643.2,4642.8,3.398]
[1755238733912,0.108,4643.2,4642.8,3.397]
[1755238734616,0.108,4643.2,4642.9,3.09710847]
[1755238735250,0.108,4643.2,4642.8,3.396]
[1755238735548,0.108,4643.2,4642.8,5.54986993]
[1755238736053,0.108,4643.2,4642.8,5.54985912]
[1755238736254,0.108,4643.2,4642.8,3.396]
[1755238736761,0.108,4643.2,4642.9,2.16966704]
[1755238736920,0.108,4643.2,4643.0,2.1537792]
[1755238737130,0.108,4643.2,4642.9,2.15381867]
[1755238737327,0.002,4643.3,4643.0,0.9433]
[1755238737537,0.11,4643.3,4643.0,0.9433]
[1755238738054,0.11,4643.3,4643.2,2.15368711]
[1755238738418,0.11,4643.3,4642.5,3.393]
[1755238738668,0.108,4642.6,4642.5,3.392]
[1755238738850,0.002,4643.3,4642.6,2.15393559]
[1755238738851,0.108,4642.8,4642.6,2.15393559]
[1755238739055,0.108,4642.8,4642.7,2.15391905]
[1755238739364,0.108,4643.1,4643.0,2.15377988]
[1755238739524,0.002,4643.3,4643.0,2.15377988]
[1755238739525,0.002,4643.3,4643.2,2.15368711]
[1755238739717,0.002,4643.3,4643.2,2.16953685]
[1755238739929,0.002,4643.3,4643.2,3.99019852]
[1755238741042,0.002,4643.3,4643.2,4.54019852]
[1755238741362,0.002,4643.3,4643.2,4.63234878]
[1755238744440,0.002,4643.3,4643.2,4.19034878]
[1755238745273,0.002,4643.3,4643.2,7.58434878]
[1755238745741,0.002,4643.3,4643.2,3.24704878]
[1755238746064,0.002,4643.3,4643.2,6.64104878]
[1755238746477,0.002,4643.3,4643.2,6.53304878]
[1755238747437,0.002,4643.3,4643.2,7.00244878]
[1755238747633,0.002,4643.3,4643.2,7.47634878]
[1755238748832,0.002,4643.3,4643.2,7.58434878]
[1755238750439,0.002,4643.3,4643.2,3.13904878]
[1755238750639,0.002,4643.3,4643.2,6.63504878]
[1755238750864,0.002,4643.3,4643.2,6.52604878]
[1755238751341,0.002,4643.3,4643.2,3.13904878]
[1755238751550,0.9173,4643.3,4642.7,0.108]
[1755238751767,1.0253,4643.3,4642.8,5.53986516]
[1755238752066,0.9153,4643.2,4642.8,3.386]
[1755238752271,0.9153,4643.1,4642.8,3.386]
[1755238752491,1.0233,4643.0,4642.5,0.108]
[1755238752684,0.9153,4642.9,4642.6,3.386]
[1755238752972,0.108,4642.7,4642.4,3.386]
[1755238753142,0.9153,4642.6,4642.3,5.54006541]
[1755238753342,0.108,4642.7,4642.3,5.54006541]
[1755238753684,0.542,4642.7,4642.3,5.54006541]
[1755238753875,0.542,4642.7,4642.3,3.386]
[1755238755273,0.108,4642.7,4642.3,3.386]
[1755238755748,0.9153,4642.6,4642.3,3.383]
[1755238755953,0.108,4642.4,4642.2,2.15413356]
[1755238756279,0.108,4642.4,4642.3,2.15410464]
[1755238756442,0.108,4642.4,4642.2,5.53714709]
[1755238756644,0.108,4642.4,4642.3,3.383]
[1755238757268,0.108,4642.4,4642.3,5.53710464]
[1755238757477,0.108,4642.7,4642.6,2.15395043]
[1755238757679,0.108,4642.7,4642.6,5.53595043]
[1755238758178,0.108,4642.7,4642.6,3.382]
[1755238758581,0.108,4642.7,4642.6,5.53596545]
[1755238759078,0.108,4642.7,4642.6,3.382]
[1755238759247,0.108,4642.7,4642.6,5.53596545]
[1755238759854,0.108,4642.7,4642.6,7.032862]
[1755238760268,0.002,4643.3,4643.0,2.15376744]
[1755238760468,0.108,4643.1,4643.0,2.15376744]
[1755238760673,0.002,4643.3,4643.2,2.15368711]
[1755238760871,0.002,4643.3,4643.2,5.53368711]
[1755238761469,0.002,4643.3,4643.2,7.34006256]
[1755238761661,0.002,4643.3,4643.2,7.99806256]
[1755238761863,0.002,4643.3,4643.2,7.05476256]
[1755238762652,0.002,4643.3,4643.2,7.48786256]
[1755238762857,0.002,4643.3,4643.2,7.94366256]
[1755238765205,0.002,4643.3,4643.2,3.12476256]
[1755238765411,0.002,4643.3,4643.2,6.50276256]
[1755238765985,0.002,4643.3,4643.2,7.39166256]
[1755238766309,0.002,4643.3,4643.2,7.94166256]
[1755238766915,0.002,4643.3,4643.2,10.94166256]
[1755238768309,1e-08,4643.3,4643.2,10.94166256]
[1755238769289,0.002,4644.3,4644.2,2.70322337]
[1755238769490,0.002,4644.3,4644.2,6.34754571]
[1755238769707,0.002,4644.3,4644.2,10.34444571]
[1755238770313,1e-08,4644.3,4644.2,10.34444571]
[1755238771221,1e-08,4644.3,4644.2,6.08154571]
[1755238771418,1e-08,4644.3,4644.2,9.45454571]
[1755238771578,1e-08,4644.3,4644.2,0.37832234]
[1755238771783,0.42790001,4644.3,4643.4,2.15355123]
[1755238772011,0.92370001,4644.3,4643.7,2.15345486]
[1755238772309,0.92370001,4644.3,4643.8,3.376]
[1755238772559,0.9237,4644.2,4643.8,3.376]
[1755238772823,0.9237,4644.1,4643.8,3.376]
[1755238773124,0.4279,4644.0,4643.9,3.375]
[1755238773304,1.0317,4644.0,4643.4,0.108]
[1755238773631,1.0317,4644.0,4643.5,3.375]
[1755238773830,0.9237,4643.9,4643.5,3.375]
[1755238774128,0.4279,4643.9,4643.5,5.52853386]
[1755238774426,0.108,4644.0,4643.5,5.52853386]
[1755238774829,0.108,4644.0,4643.5,3.375]
[1755238775005,0.5359,4644.0,4643.5,3.375]